Cogmind - Beta 14 @@@ ROGUE MODE // 2025.01.10 @ 11:00:11 Player: Doobadoop Result: Destroyed by G-47 Trooper with Particle Gun Performance ------------- Evolutions (2) 1000 Regions Visited (4) 800 Robots Destroyed (59) 295 Value Destroyed (1439) 1439 Prototype IDs (0) 0 Alien Tech Used (0) 0 Bonus (53) 53 TOTAL SCORE: 3587 Bonus ------- Follower Combat Kills 53 Cogmind --------- Core Integrity 0/550 Matter 9/300 Energy 100/100 System Corruption 2% Temperature Cool (36) Movement Core (200) Ox3 Location -8/Materials Parts ------- > --- POWER (1) -------- (None) > --- PROPULSION (2) --- (None) > --- UTILITY (5) ------ Medium Storage Unit Visual Processing Unit Signal Interpreter Improved Terrain Scan Processor > --- WEAPON (3) ------- (None) > --- INVENTORY (10) --- Weapon Cycler Dynamic Insulation System EMP Blaster Mining Laser Heavy Hammer Peak State ------------ > --- POWER ------------ Light Nuclear Core > --- PROPULSION ------- Carbon-fiber Leg Carbon-fiber Leg > --- UTILITY ---------- Medium Storage Unit Visual Processing Unit Signal Interpreter Power Shielding System Shield > --- WEAPON ----------- Particle Gun Improved Light Cannon Rocket Launcher > --- INVENTORY -------- Light Ion Engine Improved Terrain Scan Processor Weapon Cycler Dynamic Insulation System EM Pulse Cannon EMP Blaster Mini Grenade Launcher Mining Laser Heavy Hammer [Rating: 25] Favorites ----------- Power Ion Engine Engine Ion Engine Power Core Light Nuclear Core Propulsion Light Treads Treads Light Treads Leg Aluminum Leg Wheel Compact Wheel Utility Medium Storage Unit Device Improved Heat Sink Storage Medium Storage Unit Processor Signal Interpreter Hackware System Shield Protection Power Shielding Weapon Heavy Assault Rifle Energy Gun Medium Laser Energy Cannon EM Pulse Cannon Ballistic Gun Heavy Assault Rifle Ballistic Cannon Improved Light Cannon Launcher EMP Blaster Impact Weapon Heavy Hammer Build | -11 -10 -9 -9 -8 ------- Run | Yrd Mat Mat Min Mat Slots Evolved 4 | . . 2 . 2 Power . | . . . . . Propulsion . | . . . . . Utility 3 | . . 2 . 1 Weapon 1 | . . . . 1 Parts Attached 46 | 10 4 12 7 13 Power 8 | 1 1 2 2 2 Engine 6 | 1 1 2 1 1 Core 2 | . . . 1 1 Reactor . | . . . . . Propulsion 15 | 6 . 5 2 2 Treads 7 | 2 . 3 2 . Leg 6 | 2 . 2 . 2 Wheel 2 | 2 . . . . Hover . | . . . . . Flight . | . . . . . Utility 10 | 1 3 2 1 3 Device 2 | . . 1 1 . Storage 2 | 1 1 . . . Processor 3 | . 1 1 . 1 Hackware 1 | . . . . 1 Protection 2 | . 1 . . 1 Artifact . | . . . . . Weapon 13 | 2 . 3 2 6 Energy Gun 3 | 2 . . . 1 Energy Cannon 1 | . . . . 1 Ballistic Gun 3 | . . 2 . 1 Ballistic Cannon 1 | . . . 1 . Launcher 3 | . . . . 3 Special Weapon . | . . . . . Impact Weapon 2 | . . 1 1 . Slashing Weapon . | . . . . . Piercing Weapon . | . . . . . Special Melee Weapon . | . . . . . Unidentified Prototypes . | . . . . . Corrupted Parts 1 | . . . . 1 System Corruption 2 | . . . . 2 Parts Lost 24 | . . 4 5 15 Power 5 | . . 1 2 2 Propulsion 7 | . . 1 2 4 Utility 3 | . . . . 3 Weapon 9 | . . 2 1 6 Highest Loss Streak 12 | . . 2 3 12 To Critical Strikes . | . . . . . Average Slot Usage (%) 95 | . 99 95 95 92 Engine 8 | . 14 11 5 7 Core 2 | . . . 5 . Treads 10 | . . 9 17 5 Leg 3 | . . 5 . 9 Wheel 4 | . 28 4 . . Device 9 | . . 11 11 6 Storage 10 | . 14 11 11 9 Processor 19 | . . 22 22 18 Protection 2 | . 13 . . 7 Energy Gun 5 | . 28 4 . 7 Ballistic Gun 6 | . . 15 2 . Ballistic Cannon 4 | . . . 8 7 Launcher 1 | . . . . 8 Impact Weapon 4 | . . . 11 . Peak Build Rating 25 | 6 8 15 17 25 Average Rating 14 | 3 7 14 15 20 On Entrance 8 | . 6 8 13 15 Naked Turns . | . . . . . Heaviest Build 28 | 12 18 22 23 28 Greatest Support 43 | 40 26 40 43 43 Greatest Overweight (x) 7 | . . 2 1 7 Average Overweight (x) . | . . . . . Largest Inventory Capacity 10 | 8 10 10 10 10 Average Capacity 9 | 6 8 10 10 10 Most Carried 10 | 5 10 10 6 10 Average Carried 6 | 2 5 7 4 7 Final Capacity 10 | 8 10 10 10 10 Final Carried 10 | 2 10 7 5 5 Class Distribution -------------------- 62% | Scavenger-Mutant 23% | Mutant 13% | Scavenger-Tank Dominant Class ---------------- Mutant | -10/Materials Scavenger-Mutant | -9/Materials Scavenger-Mutant | -9/Mines Scavenger-Tank | -8/Materials Resources | -11 -10 -9 -9 -8 ----------- Run | Yrd Mat Mat Min Mat Matter Collected 989 | 263 67 311 199 149 Remotely . | . . . . . Salvage Created 1541 | . 156 524 264 597 Parts 117 | . 11 55 15 36 Haulers Intercepted 1 | . . . . 1 Recyclers Shooed 1 | . . . . 1 Parts Field Recycled . | . . . . . Retrieved Matter . | . . . . . Parts Self-Destructed . | . . . . . Prevented . | . . . . . Kills | -11 -10 -9 -9 -8 ------- Run | Yrd Mat Mat Min Mat Combat Hostiles Destroyed 40 | . 3 17 8 12 Melee 2 | . . 1 1 . Guns 23 | . 3 16 3 1 Cannons 9 | . . . 3 6 AOE 5 | . . . . 5 Classes Destroyed 11 | . 2 2 3 4 Worker 1 | . . . 1 . Builder 4 | . . . . 4 Tunneler 5 | . . . 4 1 Hauler 1 | . . . . 1 Recycler 3 | . . . 1 2 Mechanic 1 | . . . . 1 Watcher 4 | . 1 2 . 1 Swarmer 16 | . . 10 6 . Grunt 15 | . 3 2 2 8 Sentry 5 | . . 5 . . Hunter 4 | . . . . 4 Best Kill Streak 11 | . 2 4 2 11 Combat Bots Only 7 | . 2 4 2 7 Max Kills in Single Turn 2 | . 1 1 1 2 Gunslinging . | . . . . . Exploded 1 | . . . . 1 Melee 1 | . . 1 1 . Uniques/NPCs Destroyed . | . . . . . Combat | -11 -10 -9 -9 -8 -------- Run | Yrd Mat Mat Min Mat Hostile Shots Fired 369 | . 16 125 80 148 Missed 117 | . 4 41 19 53 Damage Taken 3179 | . 132 867 551 1629 Core 854 | . 33 169 89 563 Absorbed by Shields . | . . . . . Redirected to Shielding 36 | . 12 . . 24 Core Remaining (%) 73 | 100 86 . 35 . Volleys Fired 158 | . 13 52 44 49 Largest 3 | . 2 2 1 3 Hottest 137 | . 90 90 39 137 Shots Fired 247 | . 26 91 44 86 Gun 161 | . 26 91 22 22 Cannon 55 | . . . 22 33 Launcher 31 | . . . . 31 Special . | . . . . . Kinetic 133 | . . 63 44 26 Thermal 50 | . 13 16 . 21 Explosive 24 | . . . . 24 Electromagnetic 40 | . 13 12 . 15 Robot Hit Streak 20 | . 8 20 11 8 Robot Miss Streak 5 | . 3 3 5 3 Penetration Max . | . . . . . Secondary Targets 3 | . 1 2 . . Max Gunslinging Chain 1 | . 1 1 . . Shots Hit Robots 168 | . 15 63 35 55 Core Hits 94 | . 7 26 8 53 Critical Kills 2 | . . 1 1 . Critical Parts Destroyed . | . . . . . Critical Strikes 7 | . 1 4 2 . Burn 3 | . 1 2 . . Destroy 2 | . . 1 1 . Blast 1 | . . . 1 . Corrupt 1 | . . 1 . . Melee Attacks 14 | . . 1 13 . Impact 14 | . . 1 13 . Slashing . | . . . . . Piercing . | . . . . . Sneak Attacks 7 | . . . 7 . Combat Hostiles . | . . . . . Follow-up Attacks . | . . . . . Damage Inflicted 4787 | . 203 903 1293 2388 Guns 1576 | . 203 882 243 248 Cannons 679 | . . . 211 468 Explosions 1654 | . . . . 1654 Melee 856 | . . 17 839 . Ramming 22 | . . 4 . 18 Kinetic 1492 | . . 683 454 355 Thermal 439 | . 89 121 . 229 Explosive 1488 | . . . . 1488 Electromagnetic 490 | . 114 78 . 298 Impact 856 | . . 17 839 . Slashing . | . . . . . Piercing . | . . . . . Highest Corruption 2 | . . . . 2 Average Corruption 2 | . . . . 2 Corruption Purged . | . . . . . Corruption Blocked . | . . . . . Overload Shots . | . . . . . Overflow Damage 387 | . . . 372 15 Projectiles 2 | . . . 2 . Explosions 15 | . . . . 15 Melee 370 | . . . 370 . Knockbacks 12 | . . . 8 4 Impact 6 | . . . 5 1 Kinetic 5 | . . . 3 2 Secondary 1 | . . . . 1 Self-Inflicted Damage 162 | . . . . 162 Shots 7 | . . . . 7 Rammed 1 | . . 1 . . Targets Rammed 4 | . . 1 . 3 Kicked 3 | . . . . 3 Crushed . | . . . . . Highest Temperature 342 | . 342 23 1 218 Average Temperature 91 | . 139 16 1 62 Received Heat Transfer 1053 | . 72 117 135 729 Effects 1 | . 1 . . . Damage (minor) 1 | . 1 . . . Siege Activations . | . . . . . Robots Corrupted 3 | . . . 3 . Combat Hostiles 1 | . . . 1 . Parts Fried 7 | . . . 7 . Impact Corruptions 13 | . . . 13 . Robots Melted . | . . . . . Combat Hostiles . | . . . . . Parts Melted 5 | . 1 2 . 2 Heat Transferred 1406 | . 333 518 . 555 Parts Sabotaged . | . . . . . Parts Stolen . | . . . . . Parts Stripped . | . . . . . Power Chain Reactions . | . . . . . Alert | -11 -10 -9 -9 -8 ------- Run | Yrd Mat Mat Min Mat Peak Influence 364 | . 87 364 245 316 Initial 87 | . . 36 87 . Average 126 | . 55 190 107 87 Maximum Alert Level 1 | . . 1 1 1 Low Security (%) 75 | 100 100 55 83 82 Level 1 24 | . . 44 16 17 Level 2 . | . . . . . Level 3 . | . . . . . Level 4 . | . . . . . Level 5 . | . . . . . High Security . | . . . . . Max Security . | . . . . . Squads Dispatched 8 | . 3 1 . 4 Investigation 1 | . . . . 1 Extermination . | . . . . . Reinforcement 7 | . 3 1 . 3 Assault . | . . . . . Garrison . | . . . . . Intercept . | . . . . . Searches Triggered . | . . . . . Construction Impeded 2 | . . . . 2 Haulers Reinforced . | . . . . . Active Scanning Responses . | . . . . . Cargo Convoy Interrupts . | . . . . . Stealth | -11 -10 -9 -9 -8 --------- Run | Yrd Mat Mat Min Mat Distress Signals 2 | . . . . 2 Communications Jammed . | . . . . . Distress Signals . | . . . . . Times Spotted 71 | . 4 25 19 23 Peak Tracking Total 8 | . 2 4 4 8 Tactical Retreats 12 | . . 5 6 1 Traps | -11 -10 -9 -9 -8 ------- Run | Yrd Mat Mat Min Mat Traps Triggered . | . . . . . Indirectly . | . . . . . Trap Hack Attempts . | . . . . . Triggered . | . . . . . Disarmed . | . . . . . Reprogrammed . | . . . . . Reused . | . . . . . Traps Extracted . | . . . . . Installed . | . . . . . Triggered . | . . . . . Machines | -11 -10 -9 -9 -8 ---------- Run | Yrd Mat Mat Min Mat Machines Disabled 3 | . . . . 3 Max in Single Turn 1 | . . . . 1 Machines Repaired . | . . . . . Machines Dismantled . | . . . . . Machines Sabotaged . | . . . . . Overloaded Fab Kills . | . . . . . Hacking | -11 -10 -9 -9 -8 --------- Run | Yrd Mat Mat Min Mat Machines Accessed 4 | . . 4 . . Terminals 4 | . . 4 . . Fabricators . | . . . . . Repair Stations . | . . . . . Recycling Units . | . . . . . Scanalyzers . | . . . . . Garrison Access . | . . . . . Total Hacks 12 | . . 12 . . Successful 9 | . . 9 . . Failed 3 | . . 3 . . Catastrophic . | . . . . . Database Lockouts . | . . . . . Manual . | . . . . . Terminals 12 | . . 12 . . Fabricators . | . . . . . Repair Stations . | . . . . . Recycling Units . | . . . . . Scanalyzers . | . . . . . Garrison Access . | . . . . . Terminal Hacks 9 | . . 9 . . Record 7 | . . 7 . . Maintenance Status 1 | . . 1 . . Zone Layout 1 | . . 1 . . Fabricator Hacks . | . . . . . Repair Station Hacks . | . . . . . Recycling Unit Hacks . | . . . . . Scanalyzer . | . . . . . Garrison Access Hacks . | . . . . . Unauthorized Hacks . | . . . . . Terminals . | . . . . . Fabricators . | . . . . . Repair Stations . | . . . . . Recycling Units . | . . . . . Scanalyzers . | . . . . . Garrison Access . | . . . . . Data Cores Recovered . | . . . . . Used . | . . . . . Hacking Detections 2 | . . 2 . . Full Trace Events . | . . . . . Feedback Events . | . . . . . Feedback Blocked . | . . . . . Robot Schematics Acquired . | . . . . . Robots Built . | . . . . . Authchips . | . . . . . Time . | . . . . . Total Robot Build Rating . | . . . . . Part Schematics Acquired . | . . . . . Parts Built . | . . . . . Authchips . | . . . . . Time . | . . . . . Total Part Build Rating . | . . . . . Parts Repaired . | . . . . . Time . | . . . . . Parts Recycled . | . . . . . Recycled Matter . | . . . . . Retrieved Matter . | . . . . . Retrieved Components . | . . . . . Parts Scanalyzed . | . . . . . Part Schematics Acquired . | . . . . . Parts Damaged . | . . . . . Bothacking | -11 -10 -9 -9 -8 ------------ Run | Yrd Mat Mat Min Mat Used RIF Installer . | . . . . . Robots Hacked . | . . . . . Non-combat . | . . . . . Combat . | . . . . . Robot Hacks Applied . | . . . . . Relay Couplers Released . | . . . . . Fabnet Peak Effective % . | . . . . . Robots Rewired . | . . . . . Allies Hacked . | . . . . . Hacks Repelled . | . . . . . Allies | -11 -10 -9 -9 -8 -------- Run | Yrd Mat Mat Min Mat Total Allies 3 | . . . 3 . Largest Group 3 | . . . 3 . Highest-Rated Group 40 | . . . 40 . Highest-Rated Ally 16 | . . . 16 . Total Orders . | . . . . . Ally Attacks 30 | . . . 30 . Total Damage 215 | . . . 215 . Kills 5 | . . . 5 . Allies Corrupted . | . . . . . Allies Melted . | . . . . . Intel | -11 -10 -9 -9 -8 ------- Run | Yrd Mat Mat Min Mat Robot Analysis Total . | . . . . . Derelict Logs Recovered 1 | . . . 1 . Drone Launches . | . . . . . Drone Recoveries . | . . . . . Exploration | -11 -10 -9 -9 -8 ------------- Run | Yrd Mat Mat Min Mat Turns Passed 3590 | 129 308 1315 1277 561 Spaces Moved 1937 | 117 250 678 622 270 Core 37 | 23 . . . 14 Treads 1048 | 7 . 316 622 103 Legs 329 | 21 . 155 . 153 Wheels 523 | 66 250 207 . . Hover . | . . . . . Flight . | . . . . . Fastest Speed 50 | 50 90 90 160 120 Average Speed 150 | 91 90 157 181 145 Slowest Speed 400 | 160 90 260 240 400 Overloaded Moves . | . . . . . Propulsion Burnouts . | . . . . . Robots Hopped . | . . . . . Cave-ins Triggered . | . . . . . Exploration Rate (%) 33 | 6 30 34 69 30 Regions Visited 4 Branch Regions 1 Pre-discovered Areas 1 | . . . 1 . Known Exits Taken 3 | . 1 1 1 . Unknown Exits Taken 1 | 1 . . . . Scrap Searched 1 | . . . 1 . Spaces Dug . | . . . . . Terrain Destroyed 171 | . . . 2 169 Melee . | . . . . . Projectile 4 | . . . 2 2 AOE 167 | . . . . 167 Terrain Rammed . | . . . . . Walls Destroyed . | . . . . . Machines Disabled . | . . . . . Actions | -11 -10 -9 -9 -8 --------- Run | Yrd Mat Mat Min Mat Total 2339 | 138 305 837 704 355 Wait 118 | . 27 68 12 11 Move 1933 | 116 249 677 621 270 Hop . | . . . . . Pick Up 39 | 4 10 12 5 8 Fast Attach 17 | 8 1 4 1 3 Attach 20 | 2 . 5 5 8 Detach 4 | 4 . . . . Swap 9 | . 3 3 1 2 Drop 23 | 4 2 14 2 1 Fire 158 | . 13 52 44 49 Melee 14 | . . 1 13 . Ram . | . . . . . Kick 3 | . . . . 3 Crush 1 | . . 1 . . Escape Stasis . | . . . . . Rewire . | . . . . . Trap . | . . . . . Miscellaneous . | . . . . . Route ------- -11/Scrapyard -10/Materials -9/Materials -9/Mines (discovered 2 exits: *Mat x2) -8/Materials History --------- Turn | Location | Event 21 | -11/Scrapyard | Discovered new exit (range 15) 130 | -11/Scrapyard | Entered Materials 313 | -10/Materials | Build established: Mutant 424 | -10/Materials | Discovered new exit (range 11) 435 | -10/Materials | Identified exit to Materials 438 | -10/Materials | Entered another Materials area 438 | -9/Materials | Evolved 2 slots: Utility x2 1040 | -9/Materials | Build established: Scavenger-Mutant 1693 | -9/Materials | Discovered new exit (range 17) 1749 | -9/Materials | Identified exit to Mines 1753 | -9/Materials | Entered Mines 1821 | -9/Mines | Core integrity fell below 50% 1854 | -9/Mines | Lost 3 parts (1p2n) 1885 | -9/Mines | Assisted by bots powering up and referring to "LRC-V3" 1932 | -9/Mines | Discovered new exit (range 10) 1986 | -9/Mines | Identified exit to Materials 2563 | -9/Mines | Learned location of Zion (-6) 2747 | -9/Mines | Discovered exit to Materials (range 7) 3030 | -9/Mines | Entered Materials 3030 | -8/Materials | Evolved 2 slots: Utility x1, Weapon x1 3336 | -8/Materials | Build established: Scavenger-Tank 3540 | -8/Materials | Destroyed 7 combat bots 3568 | -8/Materials | Core integrity fell below 50% 3580 | -8/Materials | Core integrity fell below 20% 3591 | -8/Materials | Destroyed by G-47 Trooper with Particle Gun Last Messages --------------- [Achievement: Oops] 03574_ The unstable cave ceiling collapses. 03579_ System Shield destroyed. 03579_ Critical hit (Burn: +37). 03579_ Mni. Grenade Launcher destroyed. 03583_ The unstable cave ceiling collapses. 03583_ Lgt. Ion Engine crushed. 03583_ Acquired Corrupted Gauss Rifle. 03583_ Integrated Corrupted Gauss Rifle (+2). 03585_ The unstable cave ceiling collapses. 03585_ Slug penetrates G-47 Trooper. 03587_ G-47 Trooper heat damages Aluminum Leg. 03587_ Gauss Rifle destroyed. 03588_ G-47 Trooper heat short circuits Aluminum Leg. 03589_ G-47 Trooper overheating. 03590_ The unstable cave ceiling collapses. 03590_ G-47 Trooper destroyed. 03590_ G-47 Trooper overheating. 03591_ Critical hit (Burn: +37). Map ----- +----------------------------------------------------+ | ?????????????????????????????????????????????????? | | ?????????????????????????????????????????????????? | | ?????????????????????????????????????????????????? | | ?????????????????????????????????????????????????? | | ?????????????????????????????????????????????????? | | ?????????????????????????????????????????????????? | | ?????????????????????????????????????????????????? | | ?????????????????????#+##????????????????????????? | | ???????? ??????^????? ????????????????????????? | | ???????? #??? ?? ! ????????????????????????? | | ?????### #?? """"" ????????????????????????? | | ????## #?# """"" ????????????????????????? | | ????# ?# ????????????????????????? | | ???## ?# /?????????????????????????? | | ???# ]%] ###% ] ?????????????????????????? | | ???## %# ??# %= ?????????????????????????? | | ????# ??# ## ?????????####?????????????? | | ????# # ?## ???????? #?????????????? | | ????# #### #??????? #?????????????? | | ?##### ?## " ?????? #?????????????? | | ?# # ?# # #####? ???????????????? | | ?# ### # #* ????????????????? | | ?# # # # ## # ??????????????????? | | ?# # # * # ###+#########???????? | | ?# # gw ????? | | ?# % g @== g ????? | | ?# = g * ????? | | ## # # # ####T#########??????? | | # # # #???????????????????? | | + #! # # """ #???????????????????? | | %# # " ###### "R" #???????????????????? | | # #""" """ ##????# " " #???????????????????? | | ########""" #?????#* #???????????????????? | | #??????#"S """ #?????# #???????????????????? | | #??????#""" """ #?????########???????????????????? | | #??????# "" """ #????????????????????????????????? | | #??????# #????????????????????????????????? | | #???????#########????????????????????????????????? | | #????????????????????????????????????????????????? | | ##???????????????????????????????????????????????? | | #???????????????????????????????????????????????? | | #???????????????????????????????????????????????? | | #???????????????????????????????????????????????? | | #???????????????????????????????????????????????? | | #???????????????????????????????????????????????? | | ##???????????????????????????????????????????????? | | #????????????????????????????????????????????????? | | #????????????????????????????????????????????????? | | #????????????????????????????????????????????????? | | #????????????????????????????????????????????????? | +----------------------------------------------------+ Best States ------------- Heat Dissipation 45 Energy Generation 14 Energy Capacity 250 Matter Stores 300 Matter Capacity 300 Sight Range 18 Terrain Scan Density 110 Power Shielding 33 Evasion (%) 55 Recoil Reduction 2 Defensive Hacking 10 Item Schematics ----------------- None Robot Schematics ------------------ None Fabricated ------------ Nothing Alien Tech Used ----------------- None Achievements -------------- Oops Challenges ------------ None Game ------ Seed MyomerDataScrap Manual? 0 Play Time 00:35:41 Cumulative 5.2 hours Start 2025.01.10 @ 10:25:07 End 2025.01.10 @ 11:00:11 Sessions 1 Manual Loads 0 Difficulty Rogue Special Mode None Game No. 5 Rogue 3 Adventurer 2 Explorer 0 Win Type - Total 0 Types 0/0/0/0/0/0/0/0/0 Lore% 4 Gallery% 10 Achievement% 11 Wizard Run 0 Options --------- Layout 1 ASCII 0 Keyboard 0 Movement Arrows Keybinds 0 Fullscreen 1 Font 32/SmallcapsGlow Map View 50x35 Zoom Use 0% Tactical HUD 1 Map Filters NONE Filters NONE Steam 1 RUN: 176dc9f6-b6ec-40b7-9de2-c7eab0ca3768